fUSD/lending_fUSD_20250219
["ID","MTS","AMOUNT","RATE_DAILY","PERIOD"]
[353661909,1739985065108,-1882.51,0.00013393,2]
[353661910,1739985065118,-867.54,0.00013393,2]
[353661911,1739985065128,-1667.33,0.00013393,2]
[353661912,1739985065138,-678.55,0.00013393,2]
[353661913,1739985065148,-2830.22,0.00013393,2]
[353661914,1739985065158,-1366.09,0.00013393,2]
[353661915,1739985065168,-1632.54,0.00013393,2]
[353661916,1739985065177,-861.68,0.00013393,2]
[353661917,1739985065187,-1747.93,0.00013393,2]
[353661918,1739985065198,-500.0,0.00013393,2]
[353661919,1739985065208,-1566.82,0.00013393,2]
[353661920,1739985065218,-2222.1,0.00013393,2]
[353661921,1739985065229,-1473.96,0.00013393,2]
[353661922,1739985065239,-2971.09,0.00013393,2]
[353661923,1739985065249,-500.0,0.00013393,2]
[353661924,1739985065259,-1933.48,0.00013393,2]
[353661925,1739985065269,-812.08,0.00013393,2]
[353661926,1739985065279,-2492.18,0.00013393,2]
[353661927,1739985065289,-771.79,0.00013393,2]
[353661928,1739985065300,-626.15,0.00013393,2]
[353661929,1739985065311,-500.0,0.00013393,2]
[353661930,1739985065321,-500.0,0.00013393,2]
[353661931,1739985065331,-909.75,0.00013393,2]
[353661932,1739985065343,-2763.09,0.00013393,2]
[353661933,1739985065352,-500.0,0.00013393,2]
[353661934,1739985065362,-863.17,0.00013393,2]
[353661935,1739985065373,-151.0,0.00013394,2]
[353661936,1739985065383,-868.16,0.00013394,2]
[353661937,1739985065392,-959.61,0.00013394,2]
[353661938,1739985065401,-1112.25,0.00013394,2]
[353661939,1739985065411,-500.0,0.00013394,2]
[353661940,1739985065420,-500.0,0.00013394,2]
[353661941,1739985065430,-558.13,0.00013394,2]
[353661942,1739985065440,-798.77,0.00013394,2]
[353661943,1739985065454,-500.0,0.00013394,2]
[353661944,1739985065465,-500.0,0.00013394,2]
[353661945,1739985065475,-500.0,0.00013394,2]
[353661946,1739985065484,-500.0,0.00013394,2]
[353661947,1739985065494,-500.0,0.00013394,2]
[353661948,1739985065504,-830.8,0.00013394,2]
[353661949,1739985065514,-919.5,0.00013394,2]
[353661950,1739985065523,-500.0,0.00013394,2]
[353661951,1739985065533,-500.0,0.00013394,2]
[353661952,1739985065543,-500.0,0.00013394,2]
[353661953,1739985065553,-568.88,0.00013394,2]
[353661954,1739985065563,-500.0,0.00013394,2]
[353661955,1739985065573,-500.0,0.00013394,2]
[353661956,1739985065584,-500.0,0.00013394,2]
[353661957,1739985065594,-500.0,0.00013394,2]
[353661958,1739985065604,-720.94,0.00013394,2]
[353661959,1739985065614,-500.0,0.00013394,2]
[353661960,1739985065623,-500.0,0.00013394,2]
[353661961,1739985065633,-500.0,0.00013394,2]
[353661962,1739985065643,-519.75,0.00013394,2]
[353661963,1739985065652,-792.83,0.00013394,2]
[353661964,1739985065662,-500.0,0.00013394,2]
[353661965,1739985065672,-500.0,0.00013394,2]
[353661966,1739985065682,-714.36,0.00013394,2]
[353661967,1739985065691,-573.42,0.00013394,2]
[353661968,1739985065701,-500.0,0.00013394,2]
[353661969,1739985065711,-500.0,0.00013394,2]
[353661970,1739985065721,-500.0,0.00013394,2]
[353661971,1739985065731,-500.0,0.00013394,2]
[353661972,1739985065741,-503.38,0.00013394,2]
[353661973,1739985065751,-500.0,0.00013394,2]
[353661974,1739985065760,-500.0,0.00013394,2]
[353661975,1739985065770,-500.0,0.00013394,2]
[353661976,1739985065780,-1009.24,0.00013394,2]
[353661977,1739985065790,-500.0,0.00013394,2]
[353661978,1739985065800,-500.0,0.00013394,2]
[353661979,1739985065810,-500.0,0.00013394,2]
[353661980,1739985065819,-500.0,0.00013394,2]
[353661981,1739985065829,-500.0,0.00013394,2]
[353661982,1739985065839,-500.0,0.00013394,2]
[353661983,1739985065849,-500.0,0.00013394,2]
[353661984,1739985065859,-500.0,0.00013394,2]
[353661985,1739985065869,-500.0,0.00013394,2]
[353661986,1739985065879,-500.0,0.00013394,2]
[353661987,1739985065888,-500.0,0.00013394,2]
[353661988,1739985065897,-814.99,0.00013394,2]
[353661989,1739985065907,-500.0,0.00013394,2]
[353661990,1739985065982,-235.93808333,0.00013394,2]
[353661991,1739985065993,-527.33,0.00013394,2]
[353661992,1739985066003,-500.0,0.00013394,2]
[353661993,1739985066012,-806.27,0.00013394,2]
[353661994,1739985066022,-676.66,0.00013394,2]
[353661995,1739985066031,-524.64,0.00013394,2]
[353661996,1739985066040,-358.9288247,0.00013394,2]
[353661997,1739985066049,-1050.26,0.00013394,2]
[353661998,1739985066059,-500.0,0.00013394,2]
[353661999,1739985066068,-1003.28,0.00013394,2]
[353662000,1739985066079,-504.12,0.00013394,2]
[353662001,1739985066090,-500.0,0.00013394,2]
[353662002,1739985066099,-1349.94,0.00013394,2]
[353662003,1739985066110,-655.18,0.00013394,2]
[353662004,1739985066119,-547.39,0.00013394,2]
[353662005,1739985066129,-969.79,0.00013394,2]
[353662006,1739985066139,-987.4,0.00013394,2]
[353662007,1739985066148,-500.0,0.00013394,2]
[353662008,1739985066158,-500.0,0.00013394,2]
[353662009,1739985066168,-500.0,0.00013394,2]
[353662010,1739985066177,-852.73,0.00013394,2]
[353662011,1739985066187,-500.0,0.00013394,2]
[353662012,1739985066196,-500.0,0.00013394,2]
[353662013,1739985066205,-1192.6,0.00013394,2]
[353662014,1739985066215,-500.0,0.00013394,2]
[353662015,1739985066224,-500.0,0.00013394,2]
[353662016,1739985066233,-1511.71,0.00013394,2]
[353662017,1739985066243,-500.0,0.00013394,2]
[353662018,1739985066253,-500.0,0.00013394,2]
[353662019,1739985066264,-500.0,0.00013394,2]
[353662020,1739985066274,-500.0,0.00013394,2]
[353662021,1739985066284,-500.0,0.00013394,2]
[353662022,1739985066294,-500.0,0.00013394,2]
[353662023,1739985066304,-500.0,0.00013394,2]
[353662024,1739985066313,-803.08,0.00013394,2]
[353662025,1739985066323,-1588.0,0.00013394,2]
[353662026,1739985066332,-500.0,0.00013394,2]
[353662027,1739985066343,-510.60029744,0.00013394,2]
[353662028,1739985066352,-889.73,0.00013394,2]
[353662029,1739985066362,-500.0,0.00013394,2]
[353662030,1739985066372,-500.0,0.00013394,2]
[353662031,1739985066382,-584.63,0.00013394,2]
[353662032,1739985066393,-1683.1,0.00013394,2]
[353662033,1739985066403,-508.27232512,0.00013394,2]
[353662034,1739985066413,-1822.96,0.00013394,2]
[353662035,1739985066423,-500.0,0.00013394,2]
[353662036,1739985066434,-500.0,0.00013394,2]
[353662037,1739985066443,-662.53,0.00013394,2]
[353662038,1739985066457,-500.0,0.00013394,2]
[353662039,1739985066467,-2007.99,0.00013394,2]
[353662040,1739985066477,-500.0,0.00013394,2]
[353662041,1739985066486,-500.0,0.00013394,2]
[353662042,1739985066497,-500.0,0.00013394,2]
[353662043,1739985066507,-1375.4,0.00013394,2]
[353662044,1739985066516,-670.86,0.00013394,2]
[353662045,1739985066525,-500.0,0.00013394,2]
[353662046,1739985066535,-151.0,0.00013394,2]
[353662047,1739985066545,-500.0,0.00013394,2]
[353662048,1739985066554,-500.0,0.00013394,2]
[353662049,1739985066564,-1116.84,0.00013394,2]
[353662050,1739985066574,-500.0,0.00013394,2]
[353662051,1739985066584,-593.48,0.00013394,2]
[353662052,1739985066595,-500.0,0.00013394,2]
[353662053,1739985066604,-929.76,0.00013394,2]
[353662054,1739985066613,-505.64610049,0.00013394,2]
[353662055,1739985066623,-702.88,0.00013394,2]
[353662056,1739985066633,-513.30301206,0.00013394,2]
[353662057,1739985066642,-2004.33,0.00013394,2]
[353662058,1739985066651,-500.0,0.00013394,2]
[353662059,1739985066660,-500.0,0.00013394,2]
[353662060,1739985066671,-500.0,0.00013394,2]
[353662061,1739985066680,-1433.44,0.00013394,2]
[353662062,1739985066690,-500.0,0.00013394,2]
[353662063,1739985066701,-500.0,0.00013394,2]
[353662064,1739985066710,-1881.01,0.00013394,2]
[353662065,1739985066720,-500.0,0.00013394,2]
[353662066,1739985066730,-500.0,0.00013394,2]
[353662067,1739985066739,-500.0,0.00013394,2]
[353662068,1739985066749,-823.04,0.00013394,2]
[353662069,1739985066758,-933.24,0.00013394,2]
[353662070,1739985066768,-1598.8,0.00013394,2]
[353662071,1739985066778,-843.84,0.00013394,2]
[353662072,1739985066788,-500.0,0.00013394,2]
[353662073,1739985066797,-725.99,0.00013394,2]
[353662074,1739985066807,-500.0,0.00013394,2]
[353662075,1739985066816,-500.0,0.00013394,2]
[353662076,1739985066825,-1006.5,0.00013394,2]
[353662077,1739985066835,-467.28939658,0.00013394,2]
[353662078,1739985066844,-500.0,0.00013394,2]
[353662079,1739985066854,-435.97056713,0.00013394,2]
[353662080,1739985066863,-500.0,0.00013394,2]
[353662081,1739985066873,-500.0,0.00013394,2]
[353662082,1739985066883,-510.97,0.00013394,2]
[353662083,1739985066892,-151.0,0.00013394,2]
[353662084,1739985066902,-500.0,0.00013394,2]
[353662085,1739985066911,-500.0,0.00013394,2]
[353662086,1739985066921,-500.0,0.00013394,2]
[353662087,1739985066930,-500.0,0.00013394,2]
[353662088,1739985066939,-500.0,0.00013394,2]
[353662089,1739985066949,-1030.35,0.00013394,2]
[353662090,1739985066958,-500.0,0.00013394,2]
[353662091,1739985066968,-796.7,0.00013394,2]
[353662092,1739985066978,-826.13,0.00013394,2]
[353662093,1739985066987,-500.0,0.00013394,2]
[353662094,1739985066996,-500.0,0.00013394,2]
[353662095,1739985067007,-500.0,0.00013394,2]
[353662096,1739985067017,-759.7,0.00013394,2]
[353662097,1739985067027,-500.0,0.00013394,2]
[353662098,1739985067036,-705.16,0.00013394,2]
[353662099,1739985067046,-500.0,0.00013394,2]
[353662100,1739985067055,-500.0,0.00013394,2]
[353662101,1739985067065,-933.86,0.00013394,2]
[353662102,1739985067075,-500.0,0.00013394,2]
[353662103,1739985067084,-500.0,0.00013394,2]
[353662104,1739985067095,-500.0,0.00013394,2]
[353662105,1739985067104,-334.763041,0.00013394,2]
[353662106,1739985067114,-334.763041,0.00013394,2]
[353662107,1739985067123,-953.01,0.00013394,2]
[353662108,1739985067133,-500.0,0.00013394,2]
[353662109,1739985067143,-500.0,0.00013394,2]
[353662110,1739985067152,-1000.0,0.00013395,2]
[353662111,1739985067162,-500.0,0.00013395,2]
[353662112,1739985067172,-510.97,0.00013395,2]
[353662113,1739985067181,-599.36,0.00013395,2]
[353662114,1739985067193,-150.0,0.00013395,2]
[353662115,1739985067203,-154.571206,0.00013396,2]
[353662116,1739985067213,-500.0,0.00013396,2]
[353662117,1739985067222,-500.0,0.00013396,2]
[353662118,1739985067232,-729.21,0.00013396,2]
[353662119,1739985067242,-209.42234286,0.00013396,2]
[353662120,1739985067251,-652.48,0.00013396,2]
[353662121,1739985067261,-500.0,0.00013396,2]
[353662122,1739985067270,-989.93,0.00013396,2]
[353662123,1739985067279,-500.0,0.00013396,2]
[353662124,1739985067288,-500.0,0.00013396,2]
[353662125,1739985067297,-613.67,0.00013396,2]
[353662126,1739985067307,-876.6,0.00013396,2]
[353662127,1739985067316,-156.720506,0.00013396,2]
[353662128,1739985067326,-150.0,0.00013399,2]
[353662129,1739985067336,-150.0,0.000134,2]
[353662130,1739985067346,-232.0,0.000134,2]
[353662131,1739985067356,-367.0,0.000134,2]
[353662132,1739985067366,-150.0,0.00013403,2]
[353662133,1739985067376,-150.0,0.00013409,2]
[353662134,1739985067386,-150.0,0.00013414,2]
[353662135,1739985067395,-151.0,0.00013415,2]
[353662136,1739985067404,-151.0,0.00013415,2]
[353662137,1739985067413,-150.0,0.00013415,2]
[353662138,1739985067422,-2111.80403091,0.00013415,2]
[353662139,1739985067432,-1054.47139894,0.00013415,2]
[353662140,1739985067441,-151.0,0.00013416,2]
[353662141,1739985067451,-150.0,0.00013419,2]
[353662142,1739985067460,-1000.0,0.00013422,2]
[353662143,1739985067469,-1000.0,0.00013424,3]
[353662144,1739985067479,-150.0,0.00013425,2]
[353662145,1739985067488,-150.0,0.00013428,2]
[353662146,1739985067498,-150.0,0.0001343,2]
[353662147,1739985067508,-3550.07,0.00013434,2]
[353662148,1739985067517,-150.0,0.00013434,2]
[353662149,1739985067527,-150.0,0.00013436,2]
[353662150,1739985067536,-150.0,0.00013437,2]
[353662151,1739985067546,-150.0,0.00013438,2]
[353662152,1739985067556,-500.0,0.0001344,2]
[353662153,1739985067566,-695.38,0.0001344,2]
[353662154,1739985067576,-150.0,0.00013441,2]
[353662155,1739985067587,-214.11553954,0.00013442,2]
[353662156,1739985067597,-150.0,0.00013444,2]
[353662157,1739985067608,-510.97,0.00013445,2]
[353662158,1739985067618,-151.0,0.00013446,2]
[353662159,1739985067628,-151.0,0.00013446,2]
[353662160,1739985067638,-208.872871,0.00013446,2]
[353662161,1739985067648,-150.0,0.00013446,2]
[353662162,1739985067658,-150.0,0.00013449,2]
[353662163,1739985067668,-8653.15064634,0.0001345,2]
[353662164,1739985067677,-150.0,0.00013451,2]
[353662165,1739985067687,-263.11969102,0.00013452,2]
[353662166,1739985067696,-150.0,0.00013457,2]
[353662167,1739985067706,-150.0,0.0001346,2]
[353662168,1739985067715,-150.0,0.00013467,2]
[353662169,1739985067725,-1083.3,0.00013473,2]
[353662170,1739985067735,-2563.63,0.00013473,2]
[353662171,1739985067745,-1471.355987,0.00013473,2]
[353662172,1739985067755,-206.19172856,0.00013473,2]
[353662173,1739985067764,-1639.3,0.00013473,2]
[353662174,1739985067775,-1715.11,0.00013473,2]
[353662175,1739985067785,-1314.5,0.00013473,2]
[353662176,1739985067796,-1481.264469,0.00013473,2]
[353662177,1739985067807,-1939.9,0.00013473,2]
[353662178,1739985067817,-581.57,0.00013473,2]
[353662179,1739985067827,-2633.28,0.00013473,2]
[353662180,1739985067836,-500.0,0.00013473,2]
[353662181,1739985067846,-2152.36,0.00013473,2]
[353662182,1739985067856,-1946.09,0.00013473,2]
[353662183,1739985067866,-1807.19,0.00013473,2]
[353662184,1739985067876,-2114.49,0.00013473,2]
[353662185,1739985067887,-2331.81,0.00013473,2]
[353662186,1739985067896,-1023.7,0.00013473,2]
[353662187,1739985067906,-2517.46,0.00013473,2]
[353662188,1739985067915,-2191.93,0.00013473,2]
[353662189,1739985067926,-3038.52,0.00013473,2]
[353662190,1739985067936,-1629.79,0.00013473,2]
[353662191,1739985067946,-2770.84,0.00013473,2]
[353662192,1739985067956,-2437.56,0.00013473,2]
[353662193,1739985067966,-3200.2,0.00013473,2]
[353662194,1739985067975,-2827.16,0.00013473,2]
[353662195,1739985067985,-1066.98,0.00013473,2]
[353662196,1739985067995,-2270.66,0.00013473,2]
[353662197,1739985068006,-2772.68,0.00013473,2]
[353662198,1739985068015,-609.37,0.00013473,2]
[353662199,1739985068025,-3715.78,0.00013473,2]
[353662200,1739985068035,-5460.12,0.00013473,2]
[353662201,1739985068045,-1597.93,0.00013473,2]
[353662202,1739985068054,-2358.8,0.00013473,2]
[353662203,1739985068065,-500.0,0.00013473,2]
[353662204,1739985068074,-500.0,0.00013473,2]
[353662205,1739985068083,-1186.53,0.00013473,2]
[353662206,1739985068095,-2471.43,0.00013473,2]
[353662207,1739985068105,-2586.83,0.00013473,2]
[353662208,1739985068115,-3311.64,0.00013473,2]
[353662209,1739985068124,-3555.53,0.00013473,2]
[353662210,1739985068134,-2213.06,0.00013473,2]
[353662211,1739985068144,-3752.84,0.00013473,2]
[353662212,1739985068154,-1473.56,0.00013473,2]
[353662213,1739985068164,-1193.43,0.00013473,2]
[353662214,1739985068173,-3251.22,0.00013473,2]
[353662215,1739985068182,-500.0,0.00013474,2]
[353662216,1739985068192,-500.0,0.00013474,2]
[353662217,1739985068201,-1291.55,0.00013474,2]
[353662218,1739985068211,-839.9,0.00013474,2]
[353662219,1739985068220,-1352.04,0.00013474,2]
[353662220,1739985068229,-1443.58,0.00013474,2]
[353662221,1739985068238,-256.04959937,0.00013474,2]
[353662222,1739985068248,-500.0,0.00013474,2]
[353662223,1739985068258,-1949.88,0.00013474,2]
[353662224,1739985068267,-500.0,0.00013474,2]
[353662225,1739985068277,-639.35,0.00013474,2]
[353662226,1739985068287,-500.0,0.00013474,2]
[353662227,1739985068296,-500.0,0.00013474,2]
[353662228,1739985068307,-1107.27,0.00013474,2]
[353662229,1739985068316,-500.0,0.00013474,2]
[353662230,1739985068326,-500.0,0.00013474,2]
[353662231,1739985068335,-500.0,0.00013474,2]
[353662232,1739985068345,-638.95,0.00013474,2]
[353662233,1739985068355,-500.0,0.00013474,2]
[353662234,1739985068364,-500.0,0.00013474,2]
[353662235,1739985068373,-500.0,0.00013474,2]
[353662236,1739985068382,-770.48,0.00013474,2]
[353662237,1739985068393,-500.0,0.00013474,2]
[353662238,1739985068402,-500.0,0.00013474,2]
[353662239,1739985068411,-705.15,0.00013474,2]
[353662240,1739985068421,-1154.89,0.00013474,2]
[353662241,1739985068430,-500.0,0.00013474,2]
[353662242,1739985068440,-934.25,0.00013474,2]
[353662243,1739985068450,-500.0,0.00013474,2]
[353662244,1739985068459,-500.0,0.00013474,2]
[353662245,1739985068468,-500.0,0.00013474,2]
[353662246,1739985068477,-500.0,0.00013474,2]
[353662247,1739985068486,-1171.57,0.00013474,2]
[353662248,1739985068495,-500.0,0.00013474,2]
[353662249,1739985068504,-783.71,0.00013474,2]
[353662250,1739985068514,-662.75,0.00013474,2]
[353662251,1739985068523,-855.61,0.00013474,2]
[353662252,1739985068532,-500.0,0.00013474,2]
[353662253,1739985068542,-1216.11,0.00013474,2]
[353662254,1739985068551,-500.0,0.00013474,2]
[353662255,1739985068561,-664.26,0.00013474,2]
[353662256,1739985068570,-500.0,0.00013474,2]
[353662257,1739985068579,-500.0,0.00013474,2]
[353662258,1739985068588,-500.0,0.00013474,2]
[353662259,1739985068597,-580.53,0.00013474,2]
[353662260,1739985068607,-771.48,0.00013474,2]
[353662261,1739985068616,-680.3,0.00013474,2]
[353662262,1739985068625,-500.0,0.00013474,2]
[353662263,1739985068634,-899.09,0.00013474,2]
[353662264,1739985068643,-500.0,0.00013474,2]
[353662265,1739985068653,-766.28,0.00013474,2]
[353662266,1739985068662,-500.0,0.00013474,2]
[353662267,1739985068671,-500.0,0.00013474,2]
[353662268,1739985068680,-500.0,0.00013474,2]
[353662269,1739985068689,-1001.21,0.00013474,2]
[353662270,1739985068699,-500.0,0.00013474,2]
[353662271,1739985068709,-247.34489019,0.00013474,2]
[353662272,1739985068719,-500.0,0.00013474,2]
[353662273,1739985068729,-620.8,0.00013474,2]
[353662274,1739985068738,-500.0,0.00013474,2]
[353662275,1739985068748,-500.0,0.00013474,2]
[353662276,1739985068757,-500.0,0.00013474,2]
[353662277,1739985068767,-575.5,0.00013474,2]
[353662278,1739985068776,-773.69,0.00013474,2]
[353662279,1739985068785,-568.58,0.00013474,2]
[353662280,1739985068794,-775.67,0.00013474,2]
[353662281,1739985068804,-500.0,0.00013474,2]
[353662282,1739985068814,-994.51,0.00013474,2]
[353662283,1739985068824,-838.48,0.00013474,2]
[353662284,1739985068833,-701.31,0.00013474,2]
[353662285,1739985068842,-959.8,0.00013474,2]
[353662286,1739985068852,-500.0,0.00013474,2]
[353662287,1739985068861,-843.52,0.00013474,2]
[353662288,1739985068870,-500.0,0.00013474,2]
[353662289,1739985068879,-502.35066316,0.00013474,2]
[353662290,1739985068888,-500.0,0.00013474,2]
[353662291,1739985068897,-662.93,0.00013474,2]
[353662292,1739985068906,-1317.33,0.00013474,2]
[353662293,1739985068916,-1223.64,0.00013474,2]
[353662294,1739985068925,-587.49,0.00013474,2]
[353662295,1739985068934,-500.0,0.00013474,2]
[353662296,1739985068943,-500.0,0.00013474,2]
[353662297,1739985068952,-500.0,0.00013474,2]
[353662298,1739985068961,-500.0,0.00013474,2]
[353662299,1739985068970,-864.41,0.00013474,2]
[353662300,1739985068987,-500.0,0.00013474,2]
[353662301,1739985068996,-500.0,0.00013474,2]
[353662302,1739985069006,-500.0,0.00013474,2]
[353662303,1739985069015,-500.0,0.00013474,2]
[353662304,1739985069024,-500.0,0.00013474,2]
[353662305,1739985069033,-500.0,0.00013474,2]
[353662306,1739985069042,-500.0,0.00013474,2]
[353662307,1739985069051,-500.0,0.00013474,2]
[353662308,1739985069060,-500.0,0.00013474,2]
[353662309,1739985069069,-500.0,0.00013474,2]
[353662310,1739985069078,-500.0,0.00013474,2]
[353662311,1739985069088,-500.0,0.00013474,2]
[353662312,1739985069097,-500.0,0.00013474,2]
[353662313,1739985069106,-500.0,0.00013474,2]
[353662314,1739985069115,-500.0,0.00013474,2]
[353662315,1739985069124,-500.0,0.00013474,2]
[353662316,1739985069133,-500.0,0.00013474,2]
[353662317,1739985069143,-881.56,0.00013474,2]
[353662318,1739985069152,-940.03,0.00013474,2]
[353662319,1739985069161,-500.0,0.00013474,2]
[353662320,1739985069171,-500.0,0.00013474,2]
[353662321,1739985069180,-782.07,0.00013474,2]
[353662322,1739985069189,-500.0,0.00013474,2]
[353662323,1739985069199,-1437.46,0.00013474,2]
[353662324,1739985069208,-667.23,0.00013474,2]
[353662325,1739985069218,-500.0,0.00013474,2]
[353662326,1739985069228,-500.0,0.00013474,2]
[353662327,1739985069237,-946.01,0.00013474,2]
[353662328,1739985069247,-629.74,0.00013474,2]
[353662329,1739985069256,-500.0,0.00013474,2]
[353662330,1739985069266,-500.0,0.00013474,2]
[353662331,1739985069275,-500.0,0.00013474,2]
[353662332,1739985069284,-792.49,0.00013474,2]
[353662333,1739985069297,-547.21,0.00013474,2]
[353662334,1739985069306,-500.0,0.00013474,2]
[353662335,1739985069316,-569.48,0.00013474,2]
[353662336,1739985069325,-500.0,0.00013474,2]
[353662337,1739985069335,-1000.0,0.00013474,2]
[353662338,1739985069344,-1318.86,0.00013474,2]
[353662339,1739985069354,-500.0,0.00013474,2]
[353662340,1739985069363,-789.26,0.00013474,2]
[353662341,1739985069374,-500.0,0.00013474,2]
[353662342,1739985069384,-500.0,0.00013474,2]
[353662343,1739985069393,-630.78,0.00013474,2]
[353662344,1739985069403,-846.92,0.00013474,2]
[353662345,1739985069412,-500.0,0.00013474,2]
[353662346,1739985069422,-1512.56,0.00013474,2]
[353662347,1739985069432,-1258.27,0.00013474,2]
[353662348,1739985069442,-936.34,0.00013474,2]
[353662349,1739985069454,-500.0,0.00013474,2]
[353662350,1739985069463,-911.3,0.00013474,2]
[353662351,1739985069473,-726.56,0.00013474,2]
[353662352,1739985069483,-689.28,0.00013474,2]
[353662353,1739985069492,-500.0,0.00013474,2]
[353662354,1739985069501,-500.0,0.00013474,2]
[353662355,1739985069509,-2145.81,0.00013474,2]
[353662356,1739985069519,-1226.41,0.00013474,2]
[353662357,1739985069528,-500.0,0.00013474,2]
[353662358,1739985069540,-500.0,0.00013474,2]
[353662359,1739985069550,-1388.62,0.00013474,2]
[353662360,1739985069560,-524.65,0.00013474,2]
[353662361,1739985069570,-500.0,0.00013474,2]
[353662362,1739985069580,-577.95,0.00013474,2]
[353662363,1739985069589,-500.0,0.00013474,2]
[353662364,1739985069599,-500.0,0.00013474,2]
[353662365,1739985069609,-500.0,0.00013474,2]
[353662366,1739985069619,-500.0,0.00013474,2]
[353662367,1739985069628,-2409.7,0.00013474,2]
[353662368,1739985069638,-500.0,0.00013474,2]
[353662369,1739985069649,-679.91,0.00013474,2]
[353662370,1739985069660,-1389.25,0.00013474,2]
[353662371,1739985069670,-1407.61,0.00013474,2]
[353662372,1739985069679,-554.95,0.00013474,2]
[353662373,1739985069689,-1330.39,0.00013474,2]
[353662374,1739985069699,-629.82,0.00013474,2]
[353662375,1739985069709,-500.0,0.00013474,2]
[353662376,1739985069718,-1250.59,0.00013474,2]
[353662377,1739985069728,-2411.21,0.00013474,2]
[353662378,1739985069737,-1012.18,0.00013474,2]
[353662379,1739985069747,-1911.7,0.00013474,2]
[353662380,1739985069757,-500.0,0.00013474,2]
[353662381,1739985069767,-2151.15,0.00013474,2]
[353662382,1739985069776,-667.71,0.00013474,2]
[353662383,1739985069786,-500.0,0.00013474,2]
[353662384,1739985069796,-599.36,0.00013474,2]
[353662385,1739985069805,-946.91,0.00013474,2]
[353662386,1739985069815,-500.0,0.00013474,2]
[353662387,1739985069825,-660.28,0.00013474,2]
[353662388,1739985069834,-2134.34,0.00013474,2]
[353662389,1739985069845,-629.78,0.00013474,2]
[353662390,1739985069854,-557.59,0.00013474,2]
[353662391,1739985069863,-1525.22,0.00013474,2]
[353662392,1739985069873,-3523.54,0.00013474,2]
[353662393,1739985069883,-500.0,0.00013474,2]
[353662394,1739985069892,-3950.45,0.00013474,2]
[353662395,1739985069902,-1281.41,0.00013474,2]
[353662396,1739985069913,-888.47,0.00013474,2]
[353662397,1739985069923,-500.0,0.00013474,2]
[353662398,1739985069932,-500.0,0.00013474,2]
[353662399,1739985069942,-1867.19,0.00013474,2]
[353662400,1739985069952,-741.29,0.00013474,2]
[353662401,1739985069962,-500.0,0.00013474,2]
[353662402,1739985069972,-1953.23,0.00013474,2]
[353662403,1739985069981,-500.0,0.00013474,2]
[353662404,1739985069991,-877.23,0.00013474,2]
[353662405,1739985070001,-3500.11,0.00013474,2]
[353662406,1739985070012,-1030.43,0.00013474,2]
[353662407,1739985070022,-500.0,0.00013474,2]
[353662408,1739985070031,-1014.53,0.00013474,2]